Cogmind - Beta 13 @@@ ROGUE MODE // 2024.04.07 @ 01:27:15 Player: chexo4 Result: Destroyed by EX-DEC with AWS/EX-DEC Performance ------------- Evolutions (0) 0 Regions Visited (3) 600 Robots Destroyed (9) 45 Value Destroyed (161) 161 Prototype IDs (1) 20 Alien Tech Used (0) 0 Bonus (0) 0 TOTAL SCORE: 826 Bonus ------- None Cogmind --------- Core Integrity 0/250 Matter 300/300 Energy 100/100 System Corruption 17% Temperature Cool (0) Movement Core (700) Ox13 Location -10/Exiles Parts ------- > --- POWER (1) -------- (None) > --- PROPULSION (2) --- (None) > --- UTILITY (2) ------ High-capacity Storage Unit > --- WEAPON (2) ------- Light Assault Rifle > --- INVENTORY (20) --- Ion Engine Light Ion Engine Small Storage Unit Assault Rifle Rocket Launcher Mining Laser Peak State ------------ > --- POWER ------------ Light Ion Engine > --- PROPULSION ------- Compact Wheel Compact Wheel > --- UTILITY ---------- Small Storage Unit Experimental Sensor Array > --- WEAPON ----------- Light Assault Rifle Grenade Launcher > --- INVENTORY -------- Ion Engine Light Ion Engine High-capacity Storage Unit Medium Laser Assault Rifle Mining Laser [Rating: 15] Favorites ----------- Power Light Ion Engine Engine Light Ion Engine Propulsion Compact Wheel Wheel Compact Wheel Utility High-capacity Storage Unit Device Experimental Sensor Array Storage High-capacity Storage Unit Weapon Light Assault Rifle Energy Gun Medium Laser Ballistic Gun Light Assault Rifle Launcher Grenade Launcher Build | -11 -10 -10 -10 ------- Run | Yrd Mat Min Exi Slots Evolved . | . . . . Power . | . . . . Propulsion . | . . . . Utility . | . . . . Weapon . | . . . . Parts Attached 13 | 7 2 4 . Power 1 | 1 . . . Engine 1 | 1 . . . Core . | . . . . Reactor . | . . . . Propulsion 3 | 3 . . . Treads . | . . . . Leg . | . . . . Wheel 3 | 3 . . . Hover . | . . . . Flight . | . . . . Utility 5 | 1 1 3 . Device 2 | . . 2 . Storage 3 | 1 1 1 . Processor . | . . . . Hackware . | . . . . Protection . | . . . . Artifact . | . . . . Weapon 4 | 2 1 1 . Energy Gun 2 | 1 . 1 . Energy Cannon . | . . . . Ballistic Gun 1 | 1 . . . Ballistic Cannon . | . . . . Launcher 1 | . 1 . . Special Weapon . | . . . . Impact Weapon . | . . . . Slashing Weapon . | . . . . Piercing Weapon . | . . . . Special Melee Weapon . | . . . . Unidentified Prototypes 1 | . . 1 . Parts Lost 6 | . . 1 5 Power 1 | . . . 1 Propulsion 2 | . . . 2 Utility 1 | . . . 1 Weapon 2 | . . 1 1 Highest Loss Streak 5 | . . 1 5 To Critical Strikes . | . . . . Average Slot Usage (%) 99 | . 96 100 98 Engine 14 | . 14 14 14 Wheel 27 | . 28 28 26 Device 9 | . . 10 14 Storage 17 | . 24 17 14 Energy Gun 9 | . 3 10 14 Ballistic Gun 14 | . 14 14 14 Launcher 4 | . 10 3 . Naked Turns . | . . . . Heaviest Build 52 | 11 52 52 47 Greatest Support 32 | 32 32 32 32 Greatest Overweight (x) 15 | . 1 1 15 Average Overweight (x) . | . . 1 1 Largest Inventory Capacity 20 | 8 20 20 20 Average Capacity 17 | 7 17 19 20 Most Carried 6 | 5 5 6 6 Average Carried 5 | 3 4 5 6 Final Capacity 20 | 8 20 20 20 Final Carried 6 | 4 5 6 6 Class Distribution -------------------- 100% | Mutant Dominant Class ---------------- Mutant | -10/Materials Mutant | -10/Mines Mutant | -10/Exiles Resources | -11 -10 -10 -10 ----------- Run | Yrd Mat Min Exi Matter Collected 442 | 309 . 133 . Remotely . | . . . . Salvage Created 194 | 144 19 31 . Parts 16 | 12 1 3 . Haulers Intercepted . | . . . . Recyclers Shooed . | . . . . Parts Field Recycled . | . . . . Retrieved Matter . | . . . . Parts Self-Destructed . | . . . . Prevented . | . . . . Kills | -11 -10 -10 -10 ------- Run | Yrd Mat Min Exi Combat Hostiles Destroyed 3 | . . 3 . Guns 1 | . . 1 . AOE 2 | . . 2 . Classes Destroyed 5 | 2 1 2 . Tunneler 4 | 4 . . . Recycler 1 | 1 . . . Watcher 1 | . 1 . . Swarmer 1 | . . 1 . Grunt 2 | . . 2 . Best Kill Streak 2 | 2 1 2 . Combat Bots Only 2 | . . 2 . Max Kills in Single Turn 1 | 1 1 1 . Gunslinging . | . . . . Exploded 1 | . . 1 . Melee . | . . . . Uniques/NPCs Destroyed . | . . . . Combat | -11 -10 -10 -10 -------- Run | Yrd Mat Min Exi Hostile Shots Fired 74 | . . 20 54 Missed 24 | . . 3 21 Damage Taken 661 | . 1 181 479 Core 252 | . . 51 201 Absorbed by Shields . | . . . . Core Remaining (%) 100 | 100 . . . Volleys Fired 53 | 39 1 13 . Largest 2 | 2 2 2 . Hottest 70 | 70 50 70 . Shots Fired 72 | 46 3 22 1 Gun 66 | 46 2 17 1 Cannon . | . . . . Launcher 6 | . 1 5 . Special . | . . . . Kinetic 55 | 39 2 13 1 Thermal 11 | 7 . 4 . Explosive 6 | . 1 5 . Electromagnetic . | . . . . Robot Hit Streak 4 | 4 . 2 . Robot Miss Streak 8 | 8 . 2 1 Penetration Max . | . . . . Secondary Targets . | . . . . Shots Hit Robots 30 | 23 . 7 . Core Hits 17 | 8 1 8 . Critical Kills . | . . . . Critical Parts Destroyed . | . . . . Critical Strikes . | . . . . Melee Attacks . | . . . . Impact . | . . . . Slashing . | . . . . Piercing . | . . . . Sneak Attacks . | . . . . Combat Hostiles . | . . . . Follow-up Attacks . | . . . . Damage Inflicted 513 | 216 51 246 . Guns 264 | 216 . 48 . Cannons . | . . . . Explosions 247 | . 49 198 . Melee . | . . . . Ramming 2 | . 2 . . Kinetic 201 | 178 . 23 . Thermal 63 | 38 . 25 . Explosive 247 | . 49 198 . Electromagnetic . | . . . . Impact . | . . . . Slashing . | . . . . Piercing . | . . . . Highest Corruption 16 | . 2 2 16 Average Corruption 2 | . 1 2 2 Corruption Purged . | . . . . Corruption Blocked . | . . . . Effects 13 | . 1 9 3 Message Errors 4 | . . 3 1 Matter Fused 1 | . . 1 . Parts Fused 2 | . . 1 1 Data Loss (minor) 2 | . . 2 . Data Loss (major) 1 | . . 1 . Misfires 3 | . 1 1 1 Overload Shots . | . . . . Overflow Damage . | . . . . Projectiles . | . . . . Explosions . | . . . . Melee . | . . . . Knockbacks . | . . . . Impact . | . . . . Kinetic . | . . . . Secondary . | . . . . Self-Inflicted Damage 4 | . 1 3 . Shots 1 | . . 1 . Rammed 1 | . 1 . . Targets Rammed 1 | . 1 . . Kicked . | . . . . Crushed . | . . . . Highest Temperature 60 | 60 10 51 . Average Temperature 24 | 27 7 22 . Received Heat Transfer 72 | . . 72 . Siege Activations . | . . . . Robots Corrupted . | . . . . Combat Hostiles . | . . . . Parts Fried . | . . . . Impact Corruptions . | . . . . Robots Melted . | . . . . Combat Hostiles . | . . . . Parts Melted . | . . . . Heat Transferred 185 | 111 . 74 . Parts Sabotaged . | . . . . Parts Stolen . | . . . . Parts Stripped . | . . . . Power Chain Reactions . | . . . . Alert | -11 -10 -10 -10 ------- Run | Yrd Mat Min Exi Peak Influence 144 | 25 82 144 . Initial 31 | . 16 31 . Average 48 | 8 65 59 . Maximum Alert Level . | . . . . Low Security (%) 100 | 100 100 100 . Level 1 . | . . . . Level 2 . | . . . . Level 3 . | . . . . Level 4 . | . . . . Level 5 . | . . . . High Security . | . . . . Max Security . | . . . . Squads Dispatched . | . . . . Investigation . | . . . . Extermination . | . . . . Reinforcement . | . . . . Assault . | . . . . Garrison . | . . . . Intercept . | . . . . Searches Triggered . | . . . . Construction Impeded . | . . . . Haulers Reinforced . | . . . . Active Scanning Responses . | . . . . Cargo Convoy Interrupts . | . . . . Stealth | -11 -10 -10 -10 --------- Run | Yrd Mat Min Exi Distress Signals . | . . . . Communications Jammed . | . . . . Distress Signals . | . . . . Times Spotted 22 | . 2 5 15 Peak Tracking Total 14 | . 1 3 14 Tactical Retreats 2 | . . 1 1 Traps | -11 -10 -10 -10 ------- Run | Yrd Mat Min Exi Traps Triggered 2 | . 2 . . Indirectly . | . . . . Trap Hack Attempts . | . . . . Triggered . | . . . . Disarmed . | . . . . Reprogrammed . | . . . . Reused . | . . . . Traps Extracted . | . . . . Installed . | . . . . Triggered . | . . . . Machines | -11 -10 -10 -10 ---------- Run | Yrd Mat Min Exi Machines Disabled 2 | . 2 . . Max in Single Turn 2 | . 2 . . Machines Repaired . | . . . . Machines Dismantled . | . . . . Machines Sabotaged . | . . . . Overloaded Fab Kills . | . . . . Hacking | -11 -10 -10 -10 --------- Run | Yrd Mat Min Exi Machines Accessed 2 | . 2 . . Terminals 2 | . 2 . . Fabricators . | . . . . Repair Stations . | . . . . Recycling Units . | . . . . Scanalyzers . | . . . . Garrison Access . | . . . . Total Hacks 7 | . 7 . . Successful 3 | . 3 . . Failed 4 | . 4 . . Catastrophic 2 | . 2 . . Database Lockouts . | . . . . Manual 6 | . 6 . . Terminals 7 | . 7 . . Fabricators . | . . . . Repair Stations . | . . . . Recycling Units . | . . . . Scanalyzers . | . . . . Garrison Access . | . . . . Terminal Hacks 3 | . 3 . . Branch Access Points 1 | . 1 . . Locate Traps 1 | . 1 . . Zone Layout 1 | . 1 . . Fabricator Hacks . | . . . . Repair Station Hacks . | . . . . Recycling Unit Hacks . | . . . . Scanalyzer . | . . . . Garrison Access Hacks . | . . . . Unauthorized Hacks . | . . . . Terminals . | . . . . Fabricators . | . . . . Repair Stations . | . . . . Recycling Units . | . . . . Scanalyzers . | . . . . Garrison Access . | . . . . Data Cores Recovered . | . . . . Used . | . . . . Hacking Detections 1 | . 1 . . Full Trace Events 1 | . 1 . . Feedback Events . | . . . . Feedback Blocked . | . . . . Robot Schematics Acquired . | . . . . Robots Built . | . . . . Authchips . | . . . . Time . | . . . . Total Robot Build Rating . | . . . . Part Schematics Acquired . | . . . . Parts Built . | . . . . Authchips . | . . . . Time . | . . . . Total Part Build Rating . | . . . . Parts Repaired . | . . . . Time . | . . . . Parts Recycled . | . . . . Recycled Matter . | . . . . Retrieved Matter . | . . . . Retrieved Components . | . . . . Parts Scanalyzed . | . . . . Part Schematics Acquired . | . . . . Parts Damaged . | . . . . Bothacking | -11 -10 -10 -10 ------------ Run | Yrd Mat Min Exi Used RIF Installer . | . . . . Robots Hacked . | . . . . Non-combat . | . . . . Combat . | . . . . Robot Hacks Applied . | . . . . Relay Couplers Released . | . . . . Fabnet Peak Effective % . | . . . . Robots Rewired . | . . . . Allies Hacked . | . . . . Hacks Repelled . | . . . . Allies | -11 -10 -10 -10 -------- Run | Yrd Mat Min Exi Total Allies 3 | . . 3 . Largest Group 3 | . . 3 3 Highest-Rated Group 40 | . . 40 40 Highest-Rated Ally 16 | . . 16 16 Total Orders 3 | . . . 3 STAY 3 | . . . 3 Ally Attacks 10 | . . . 10 Total Damage 127 | . . . 127 Kills . | . . . . Allies Corrupted . | . . . . Allies Melted . | . . . . Intel | -11 -10 -10 -10 ------- Run | Yrd Mat Min Exi Robot Analysis Total . | . . . . Derelict Logs Recovered 1 | . . 1 . Drone Launches . | . . . . Drone Recoveries . | . . . . Exploration | -11 -10 -10 -10 ------------- Run | Yrd Mat Min Exi Turns Passed 1364 | 285 171 728 180 Spaces Moved 1086 | 202 147 589 148 Core 12 | 10 . . 2 Treads . | . . . . Legs . | . . . . Wheels 1074 | 192 147 589 146 Hover . | . . . . Flight . | . . . . Fastest Speed 50 | 50 100 115 115 Average Speed 111 | 93 111 115 123 Slowest Speed 800 | 100 115 115 800 Overloaded Moves . | . . . . Propulsion Burnouts . | . . . . Robots Hopped . | . . . . Cave-ins Triggered . | . . . . Exploration Rate (%) 42 | 6 39 83 40 Regions Visited 3 Branch Regions 2 Pre-discovered Areas . | . . . . Known Exits Taken 1 | . 1 . . Unknown Exits Taken 2 | 1 . 1 . Scrap Searched 1 | . . 1 . Spaces Dug . | . . . . Terrain Destroyed 35 | . . 35 . Melee . | . . . . Projectile . | . . . . AOE 35 | . . 35 . Terrain Rammed . | . . . . Walls Destroyed . | . . . . Machines Disabled . | . . . . Actions | -11 -10 -10 -10 --------- Run | Yrd Mat Min Exi Total 1181 | 261 152 620 148 Wait 12 | . . 12 . Move 1083 | 201 146 588 148 Hop . | . . . . Pick Up 16 | 12 2 2 . Fast Attach . | . . . . Attach 9 | 6 1 2 . Detach 1 | . . 1 . Swap 4 | 1 1 2 . Drop 2 | 2 . . . Fire 53 | 39 1 13 . Melee . | . . . . Ram 1 | . 1 . . Kick . | . . . . Crush . | . . . . Escape Stasis . | . . . . Rewire . | . . . . Trap . | . . . . Miscellaneous . | . . . . Route ------- -11/Scrapyard -10/Materials -10/Mines (discovered 2 exits: [*Mat] / [*Exi]) -10/Exiles (discovered 2 exits: Min x2) History --------- Turn | Location | Event 16 | -11/Scrapyard | Discovered new exit (range 14) 286 | -11/Scrapyard | Entered Materials 306 | -10/Materials | Build established: Mutant 349 | -10/Materials | Identified exit to Mines 457 | -10/Materials | Entered Mines 616 | -10/Mines | Found a damaged Exp. Sensor Array with a note attached 619 | -10/Mines | Found Prototype Device 620 | -10/Mines | Identified Exp. Sensor Array 659 | -10/Mines | Assembled infested the area 790 | -10/Mines | Received a Rocket Launcher from a helpful Derelict 834 | -10/Mines | Discovered new exit (range 10) 938 | -10/Mines | Assisted by bots powering up and referring to "LRC-V3" 1171 | -10/Mines | Deemed a non-threat by the Exiles lab entrance 1172 | -10/Mines | Discovered new exit (range 5) 1185 | -10/Mines | Entered Exiles 1185 | -10/Exiles | Accompanied by 3 allies 1186 | -10/Exiles | Identified exit to Mines 1223 | -10/Exiles | Met 8R-AWN 1250 | -10/Exiles | Met EX-HEX 1325 | -10/Exiles | Met EX-DEC 1338 | -10/Exiles | Attacked by the Exiles 1355 | -10/Exiles | Core integrity fell below 50% 1361 | -10/Exiles | System corruption reached 10% 1363 | -10/Exiles | Core integrity fell below 20% 1365 | -10/Exiles | Destroyed by EX-DEC with AWS/EX-DEC Last Messages --------------- Trooper 1a knocked back. Mercenary 1a destroyed. EX-DEC suffers critical hit (Burn). EX-DEC heat short circuits Adv. Launcher Guidance Computer. Trooper 1a destroyed. EX-DEC heat damages EX Chip 1, EX Chip 1. Machine disabled. EX-DEC heat damages EX Chip 2. Com. Wheel destroyed. EX-DEC heat damages EX Chip 1, Cmb. Antigrav System, Imp. Armor Integrity Analyzer, EX Chip 1. EX-BIN: "I just want to science!" as-36512 destroyed. Med. Laser destroyed. Lgt. Ion Engine destroyed. System corrupted by crushing effect (+3). Exp. Sensor Array destroyed. System corrupted by crushing effect (+4). Map ----- +----------------------------------------------------+ | ??????????????" ????????????? | | ?????????????"" "???????????#""" | | ?????????????""" """????????????#""" | | ????????????""" """#????????????#"""" | | ????????????""" ""#???????????##"" | | ????????????"" ########??####"""" | | ????????????""" ## ####""" | | ???????????#"" """" | | ????????????#"" | | ????????????#"""" % | | ?????????????# % | | ?????????????#" * " "" | | ?????????????#"""" %%! ""## ##""" " " | | ?????????????#"" [ ""#### ######""" " | | ?????????????#" z """"##??# #????###""" | | ?????????????#""" """#??## ####???#### | | ?????????????## ""##??#! "!#??????? | | ??????????????#"" c"""##???#" !#??????? | | ??????????????##""" aaa ##????#" "#??????? | | ???????????????##""" c ##?????#!!""!"#??????? | | ????????????????### #??????########??????? | | ??????????????????##### %a ##????????????????????? | | ??????????????????????## #?????????????????????? | | ???????????????????????# a #?????????????????????? | | ???????????????????????# a #?????????????????????? | | ???????????????????????# @ #?????????????????????? | | ???????????????????????# #?????????????????????? | | ???????????????????????# #?????????????????????? | | ???????????????????????# #?????????????????????? | | ???????????????????????# #?????????????????????? | | ???????????????????????# #?????????????????????? | | ???????????????????????# z#?????????????????????? | | ???????????????????????# #?????????????????????? | | ???????????????????????"c "?????????????????????? | | ??????????????????????? ?????????????????????? | | ??????????????????????? ?????????????????????? | | ??????????????????????? ?????????????????????? | | ??????????????????????? ?????????????????????? | | ??????????????????????? ?????????????????????? | | ???????????????????????" ?????????????????????? | | ????????????????????????##""?????????????????????? | | ?????????????????????????????????????????????????? | | ?????????????????????????????????????????????????? | | ?????????????????????????????????????????????????? | | ?????????????????????????????????????????????????? | | ?????????????????????????????????????????????????? | | ?????????????????????????????????????????????????? | | ?????????????????????????????????????????????????? | | ?????????????????????????????????????????????????? | | ?????????????????????????????????????????????????? | +----------------------------------------------------+ Best States ------------- Heat Dissipation 25 Energy Generation 10 Energy Capacity 125 Matter Stores 300 Matter Capacity 300 Sight Range 16 Robot Scan Range 20 Terrain Scan Density 10 Evasion (%) 50 Item Schematics ----------------- None Robot Schematics ------------------ None Fabricated ------------ Nothing Alien Tech Used ----------------- None Achievements -------------- None Challenges ------------ None Game ------ Seed HeatAblativeThrower Manual? 0 Play Time 00:13:11 Cumulative 12.2 hours Start 2024.04.07 @ 01:10:22 End 2024.04.07 @ 01:27:15 Sessions 1 Manual Loads 0 Difficulty Rogue Special Mode None Game No. 31 Rogue 31 Adventurer 0 Explorer 0 Win Type - Total 0 Types 0/0/0/0/0/0/0/0/0 Lore% 15 Gallery% 23 Achievement% 18 Wizard Run 0 Options --------- Layout 1 ASCII 0 Keyboard 0 Movement Arrows Keybinds 0 Fullscreen 1 Font 24/Smallcaps Map View 50x35 Zoom Use 0% Tactical HUD 0 Map Filters NONE Filters NONE Steam 1 RUN: 4a5295ce-ce42-445d-92e4-26e3164446d1